[Event "GER-ch Youth-ODJM 2022 A"]
[Site "Willingen"]
[Date "2022.06.09"]
[Round "7.4"]
[White "Reger, Christoph"]
[Black "Akcapinar, Timur"]
[Result "0-1"]
[ECO "A45"]
[WhiteElo "1056"]
[BlackElo "1278"]
[Annotator "NA RC COMBH"]
[PlyCount "84"]
[EventDate "2022.06.05"]
[EventType "swiss"]
[EventRounds "9"]
[EventCountry "GER"]
[SourceTitle "playchess.com"]
[Source "ChessBase"]
[SourceQuality "1"]
[TimeControl "40/4500+30:900+30"]

1. d4 {[%emt 0:00:00]} Nf6 {[%emt 0:00:00]} 2. Bf4 {[%emt 0:00:00]} c5 {[%emt 0:00:00]} 3. e3 {[%emt 0:00:00]} Qb6 {[%emt 0:00:00]} 4. b3 {[%emt 0:00:00]} d6 {[%emt 0:00:00]} 5. Nf3 {[%emt 0:00:00]} Nh5 {[%emt 0:00:00]} 6. Bg3 {[%emt 0:00:00]} Nxg3 {[%emt 0:00:00]} 7. hxg3 {[%emt 0:00:00]} Bg4 {[%emt 0:00:00]} 8. Nbd2 {[%emt 0:00:00]} Nc6 {[%emt 0:00:00]} 9. Nc4 {[%emt 0:00:25]} Qb4+ {[%emt 0:00:00]} 10. Qd2 {[%emt 0:00:37]} Qxd2+ {[%emt 0:00:00]} 11. Ncxd2 {[%emt 0:00:49]} g6 {[%emt 0:00:00]} 12. Bb5 {[%emt 0:04:32]} Bg7 {[%emt 0:00:00]} 13. Rc1 {[%emt 0:02:35]} a6 {[%emt 0:00:00]} 14. Bxc6+ {[%emt 0:00:08]} bxc6 {[%emt 0:00:00]} 15. dxc5 {[%emt 0:01:38]} dxc5 {[%emt 0:02:34]} 16. c4 {[%emt 0:01:23]} Bf5 {[%emt 0:05:32]} 17. Nh4 {[%emt 0:01:02]} Bb2 {[%emt 0:02:24]} 18. O-O {[%emt 0:02:06]} Bxc1 {[%emt 0:00:24]} 19. Rxc1 {[%emt 0:00:11]} O-O-O {[%emt 0:00:21]} 20. Nhf3 {[%emt 0:09:03]} f6 {[%emt 0:03:42]} 21. Re1 {[%emt 0:02:54]} g5 {[%emt 0:00:47]} 22. e4 {[%emt 0:01:10]} Bg6 {[%emt 0:01:56]} 23. Nb1 {[%emt 0:00:41]} Rd7 {[%emt 0:02:27]} 24. Nc3 {[%emt 0:00:53]} Rhd8 {[%emt 0:00:28]} 25. e5 {[%emt 0:01:05]} Rd3 {[%emt 0:03:36]} 26. Na4 {[%emt 0:00:23]} Rd1 {[%emt 0:00:17]} 27. Kh2 {[%emt 0:01:41]} Rxe1 {[%emt 0:00:40]} 28. Nxe1 {[%emt 0:00:07]} g4 {[%emt 0:00:13]} 29. exf6 {[%emt 0:00:47]} exf6 {[%emt 0:00:25]} 30. Nxc5 {[%emt 0:01:19]} Rd1 {[%emt 0:00:33]} 31. Nf3 {[%emt 0:00:28]} gxf3 {[%emt 0:00:12]} 32. gxf3 {[%emt 0:00:06]} Rd2 {[%emt 0:00:09]} 33. a4 {[%emt 0:00:30]} Rxf2+ {[%emt 0:00:44]} 34. Kh3 {[%emt 0:00:21]} Rxf3 {[%emt 0:00:06]} 35. Kg4 {[%emt 0:00:12]} Rf5 {[%emt 0:00:36]} 36. Nxa6 {[%emt 0:00:30]} c5 {[%emt 0:02:51]} 37. b4 {[%emt 0:00:20]} cxb4 {[%emt 0:00:22]} 38. Nxb4 {[%emt 0:00:07]} Rc5 {[%emt 0:00:11]} 39. Nd5 {[%emt 0:01:26]} Rxc4+ {[%emt 0:00:42]} 40. Kh3 {[%emt 0:00:14]} Kb7 {[%emt 0:01:17]} 41. a5 {[%emt 0:15:25]} Rc5 {[%emt 0:15:39]} 42. Nb4 {[%emt 0:00:35]} Rxa5 {[%emt 0:00:16]} 0-1

[Event "GER-ch Youth-ODJM 2022 A"]
[Site "Willingen"]
[Date "2022.06.09"]
[Round "7.5"]
[White "Fahlbusch, Niclas"]
[Black "Fröhlich, Niklas"]
[Result "0-1"]
[ECO "A45"]
[WhiteElo "1280"]
[BlackElo "1242"]
[Annotator "NA RC COMBH"]
[PlyCount "102"]
[EventDate "2022.06.05"]
[EventType "swiss"]
[EventRounds "9"]
[EventCountry "GER"]
[SourceTitle "playchess.com"]
[Source "ChessBase"]
[SourceQuality "1"]
[TimeControl "40/4500+30:900+30"]

1. d4 {[%emt 0:00:00]} Nf6 {[%emt 0:00:00]} 2. Bf4 {[%emt 0:00:00]} g6 {[%emt 0:00:00]} 3. Qd2 {[%emt 0:00:00]} d6 {[%emt 0:00:00]} 4. Nc3 {[%emt 0:00:00]} Bg7 {[%emt 0:00:00]} 5. e4 {[%emt 0:00:00]} Nbd7 {[%emt 0:00:00]} 6. Nf3 {[%emt 0:00:29]} O-O {[%emt 0:00:00]} 7. O-O-O {[%emt 0:02:35]} c5 {[%emt 0:00:00]} 8. dxc5 {[%emt 0:05:10]} Nxc5 {[%emt 0:00:00]} 9. e5 {[%emt 0:00:24]} Nfe4 {[%emt 0:05:17]} 10. Nxe4 {[%emt 0:00:30]} Nxe4 {[%emt 0:00:05]} 11. Qe3 {[%emt 0:00:56]} d5 {[%emt 0:01:31]} 12. Bd3 {[%emt 0:03:20]} Qa5 {[%emt 0:08:02]} 13. a3 {[%emt 0:12:57]} Nc5 {[%emt 0:06:26]} 14. h4 {[%emt 0:02:16]} Nxd3+ {[%emt 0:01:00]} 15. Qxd3 {[%emt 0:05:17]} Bf5 {[%emt 0:01:48]} 16. Qxd5 {[%emt 0:01:58]} Rac8 {[%emt 0:08:49]} 17. Qxa5 {[%emt 0:11:35]} Rxc2+ {[%emt 0:00:05]} 18. Kb1 {[%emt 0:00:14]} Rc5+ {[%emt 0:00:06]} 19. Ka1 {[%emt 0:01:37]} Rxa5 {[%emt 0:00:05]} 20. h5 {[%emt 0:02:47]} Bg4 {[%emt 0:03:04]} 21. hxg6 {[%emt 0:10:14]} fxg6 {[%emt 0:02:48]} 22. Rd4 {[%emt 0:00:49]} h5 {[%emt 0:06:58]} 23. Nh4 {[%emt 0:02:44]} Kh7 {[%emt 0:02:59]} 24. f3 {[%emt 0:01:41]} Be6 {[%emt 0:01:39]} 25. g4 {[%emt 0:06:58]} Bxe5 {[%emt 0:04:06]} 26. Bxe5 {[%emt 0:01:46]} Rxe5 {[%emt 0:00:30]} 27. Ng2 {[%emt 0:00:17]} Rxf3 {[%emt 0:04:00]} 28. gxh5 {[%emt 0:00:08]} Rxh5 {[%emt 0:06:49]} 29. Rxh5+ {[%emt 0:00:40]} gxh5 {[%emt 0:00:15]} 30. Rf4 {[%emt 0:00:09]} Rxf4 {[%emt 0:00:25]} 31. Nxf4 {[%emt 0:00:08]} Bg4 {[%emt 0:00:26]} 32. Kb1 {[%emt 0:00:11]} h4 {[%emt 0:00:45]} 33. Kc2 {[%emt 0:01:39]} h3 {[%emt 0:00:31]} 34. Nxh3 {[%emt 0:00:06]} Bxh3 {[%emt 0:00:04]} 35. Kd3 {[%emt 0:00:08]} Kg6 {[%emt 0:00:21]} 36. Ke4 {[%emt 0:00:12]} Kf6 {[%emt 0:00:55]} 37. b4 {[%emt 0:00:18]} Bg2+ {[%emt 0:00:40]} 38. Ke3 {[%emt 0:00:17]} Bc6 {[%emt 0:00:24]} 39. Kf4 {[%emt 0:00:16]} e5+ {[%emt 0:00:07]} 40. Ke3 {[%emt 0:00:15]} Kf5 {[%emt 0:00:21]} 41. a4 {[%emt 0:15:10]} Bxa4 {[%emt 0:15:13]} 42. b5 {[%emt 0:00:05]} Bxb5 {[%emt 0:00:05]} 43. Kf3 {[%emt 0:00:07]} a5 {[%emt 0:00:08]} 44. Ke3 {[%emt 0:00:08]} a4 {[%emt 0:00:12]} 45. Kd2 {[%emt 0:00:08]} e4 {[%emt 0:00:13]} 46. Kc2 {[%emt 0:00:28]} e3 {[%emt 0:00:10]} 47. Kd1 {[%emt 0:00:10]} e2+ {[%emt 0:00:11]} 48. Kc2 {[%emt 0:00:20]} e1=Q {[%emt 0:00:11]} 49. Kb2 {[%emt 0:00:10]} Qd2+ {[%emt 0:00:23]} 50. Kb1 {[%emt 0:00:18]} Bc4 {[%emt 0:00:18]} 51. Ka1 {[%emt 0:00:11]} Qa2# 0-1

[Event "GER-ch Youth-ODJM 2022 A"]
[Site "Willingen"]
[Date "2022.06.09"]
[Round "7.7"]
[White "Nied, Pascal"]
[Black "Garbuz, Vitaly"]
[Result "1-0"]
[ECO "B38"]
[WhiteElo "2030"]
[BlackElo "2134"]
[Annotator "TA"]
[PlyCount "65"]
[EventDate "2022.06.05"]
[EventType "swiss"]
[EventRounds "9"]
[EventCountry "GER"]
[SourceTitle "playchess.com"]
[Source "ChessBase"]
[SourceQuality "1"]
[TimeControl "40/4500+30:900+30"]

{[%evp 11,65,30,49,50,52,57,53,54,70,62,66,64,70,66,72,-64,63,68,67,36,77,16,55,19,48,50,66,67,119,115,252,248,236,251,296,272,418,419,416,415,403,404,507,500,505,504,516,518,508,497,536,507,648,614,1081,928]} 1. e4 {[%emt 0:00:00]} c5 {[%emt 0:00:00]} 2. Nf3 {[%emt 0:00:00]} Nc6 {[%emt 0:00:00]} 3. d4 {[%emt 0:00:00]} cxd4 {[%emt 0:00:00]} 4. Nxd4 {[%emt 0:00:00]} g6 {[%emt 0:00:00]} 5. c4 {[%emt 0:00:00]} Bg7 {[%emt 0:00:00]} 6. Be3 {[%emt 0:00:00]} Qb6 {[%emt 0:00:00][%cal Rc6d4] is recently more successful than 6...Nf6.} 7. Nb3 {[%emt 0:00:00] B38: Sicilian: Maroczy Bind with 5...Bg7 and 7...0-0.} Qc7 {[%emt 0:00:00]} 8. Qd2 {[%emt 0:00:00]} Nf6 {[%emt 0:00:00]} 9. Nc3 {[%emt 0:00:00] White is slightly better.} d6 {[%emt 0:00:00]} 10. Be2 {[%emt 0:00:00]} O-O {[%emt 0:00:00]} 11. O-O {[%emt 0:00:00]} b6 {[%emt 0:00:00]} 12. Rac1 {[%emt 0:07:10]} Bb7 {[%emt 0:00:00]} 13. Nd4 {[%emt 0:05:07]} (13. Rfd1 $16) 13... Rac8 {[%emt 0:00:00]} (13... Nxd4 $15 14. Bxd4 e5) 14. f3 $14 {[%emt 0:12:23]} Qb8 {[%emt 0:04:19]} 15. Nd5 {[%emt 0:09:29]} Rfe8 {[%emt 0:01:25] [#]} 16. b4 $146 {[%emt 0:01:21] 0x0.002052cc313ddp-1022s more active pieces.} ({Better is} 16. Nb5 $16) ({Predecessor:} 16. Nb5 Nd7 17. Rfd1 Ba8 18. b3 a6 19. Nbc3 e6 20. Nf4 Bf8 21. Nh3 Nce5 22. Nf2 {½-½ (58) Bubir,A (2431)-Sassler,A (2387) LSS email 2011}) 16... Nd7 {[%emt 0:09:27]} 17. Rfd1 {[%emt 0:07:25]} e6 {[%emt 0:09:36] [#] Hoping for ...Nxd4.} 18. Nxc6 {[%emt 0:00:59]} Rxc6 {[%emt 0:06:12]} 19. Nc3 {[%emt 0:14:09][%cal Bd5c3,Bc3b5,Bb5d6][%mdl 32]} Ne5 {[%emt 0:07:19]} (19... Bf6 $14) 20. Nb5 $16 {[%emt 0:01:59]} f5 {[%emt 0:20:24] This move loses the game for Black.} (20... Rd8 $16) 21. Nxd6 $18 {[%emt 0:04:29]} Rd8 {[%emt 0:01:36][%cal Rc6d6]} 22. c5 {[%emt 0:00:08] aiming for exf5.} bxc5 {[%emt 0:00:16]} 23. bxc5 {[%emt 0:00:50][%cal Bb4c5,Bc5d6][%mdl 32]} Nf7 {[%emt 0:01:01]} (23... fxe4 $142 24. fxe4 Ba6 25. Bxa6 Rxa6) 24. Qb4 {[%emt 0:01:16]} Nxd6 {[%emt 0:01:08]} 25. cxd6 {[%emt 0:00:46]} ({Less strong is} 25. Rxd6 Rdxd6 26. cxd6 a5 27. Qxa5 Rxc1+ 28. Bxc1 Qxd6 $16) 25... Rxc1 {[%emt 0:04:55]} 26. Rxc1 {[%emt 0:01:51][%cal Bd1c1,Bc1b1,Bb1b7][%mdl 32]} ({Weaker is} 26. Bxc1 fxe4 27. d7 Bf6 28. fxe4 Bc6 29. Qxb8 Rxb8 $18) 26... fxe4 {[%emt 0:02:14]} 27. Rb1 {[%emt 0:01:37] White is clearly winning.} exf3 {[%emt 0:01:56]} 28. Bxf3 {[%emt 0:00:41]} Qxd6 {[%emt 0:00:37]} 29. Qxd6 {[%emt 0:00:49]} Rxd6 {[%emt 0:00:05]} 30. Rxb7 {[%emt 0:00:17]} Rd3 {[%emt 0:00:25]} 31. Kf2 {[%emt 0:02:09]} Bf8 {[%emt 0:00:06]} 32. Be2 {[%emt 0:01:22]} Ra3 {[%emt 0:00:08]} 33. Bc4 {[%emt 0:00:16] Weighted Error Value: White=0.22 (precise) /Black=0.46} 1-0

[Event "GER-ch Youth-ODJM 2022 A"]
[Site "Willingen"]
[Date "2022.06.09"]
[Round "7.8"]
[White "Lau, Lars"]
[Black "Zinnikus, Elias"]
[Result "1-0"]
[ECO "A16"]
[WhiteElo "929"]
[BlackElo "1282"]
[Annotator "NA RC COMBH"]
[PlyCount "179"]
[EventDate "2022.06.05"]
[EventType "swiss"]
[EventRounds "9"]
[EventCountry "GER"]
[SourceTitle "playchess.com"]
[Source "ChessBase"]
[SourceQuality "1"]
[TimeControl "40/4500+30:900+30"]

1. c4 {[%emt 0:00:00]} Nf6 {[%emt 0:00:00]} 2. Nc3 {[%emt 0:00:00]} g6 {[%emt 0:00:00]} 3. e3 {[%emt 0:00:00]} Bg7 {[%emt 0:00:00]} 4. Be2 {[%emt 0:00:00]} O-O {[%emt 0:00:00]} 5. Nf3 {[%emt 0:00:00]} d6 {[%emt 0:00:00]} 6. O-O {[%emt 0:00:00]} Re8 {[%emt 0:00:00]} 7. b3 {[%emt 0:00:00]} Bd7 {[%emt 0:00:00]} 8. Bb2 {[%emt 0:00:00]} a5 {[%emt 0:00:00]} 9. Nd5 {[%emt 0:00:00]} e5 {[%emt 0:00:00]} 10. Nxf6+ {[%emt 0:00:00]} Bxf6 {[%emt 0:00:00]} 11. d4 {[%emt 0:00:00]} Qe7 {[%emt 0:00:00]} 12. Re1 {[%emt 0:00:00]} Na6 {[%emt 0:00:00]} 13. a3 {[%emt 0:00:00]} e4 {[%emt 0:00:00]} 14. Nd2 {[%emt 0:00:00]} c5 {[%emt 0:00:00]} 15. f3 {[%emt 0:00:00]} Bc6 {[%emt 0:13:01]} 16. Rb1 {[%emt 0:00:31]} cxd4 {[%emt 0:11:11]} 17. exd4 {[%emt 0:01:58]} e3 {[%emt 0:00:39]} 18. Nf1 {[%emt 0:00:56]} d5 {[%emt 0:10:40]} 19. cxd5 {[%emt 0:05:17]} Bxd5 {[%emt 0:00:31]} 20. Bxa6 {[%emt 0:00:44]} Rxa6 {[%emt 0:01:31]} 21. Rxe3 {[%emt 0:03:47]} Re6 {[%emt 0:00:19]} 22. Rxe6 {[%emt 0:00:50]} Qxe6 {[%emt 0:00:06]} 23. Ng3 {[%emt 0:01:50]} Bxb3 {[%emt 0:01:33]} 24. Qd2 {[%emt 0:00:48]} Qb6 {[%emt 0:11:24]} 25. Ne4 {[%emt 0:01:11]} Bg7 {[%emt 0:02:16]} 26. Re1 {[%emt 0:00:59]} Bd5 {[%emt 0:04:58]} 27. Nf6+ Bxf6 {[%emt 0:01:31]} 28. Rxe8+ {[%emt 0:00:12]} Kg7 {[%emt 0:00:13]} 29. Bc1 {[%emt 0:00:15]} Qxd4+ {[%emt 0:04:15]} 30. Qe3 {[%emt 0:01:01]} Qd1+ {[%emt 0:00:57]} 31. Qe1 {[%emt 0:00:27]} Bd4+ {[%emt 0:00:09]} 32. Kh1 {[%emt 0:00:07]} Qxe1+ {[%emt 0:07:41]} 33. Rxe1 {[%emt 0:00:08]} Bc6 {[%emt 0:00:26]} 34. Bd2 {[%emt 0:00:49]} a4 {[%emt 0:00:39]} 35. Be3 {[%emt 0:00:35]} Bb2 {[%emt 0:00:20]} 36. Rd1 {[%emt 0:00:24]} Bxa3 {[%emt 0:00:26]} 37. Bd4+ {[%emt 0:00:08]} Kg8 {[%emt 0:00:15]} 38. Be3 {[%emt 0:00:34]} f5 {[%emt 0:00:12]} 39. Bh6 {[%emt 0:00:19]} Kf7 {[%emt 0:00:14]} 40. Kg1 {[%emt 0:00:29]} Kf6 {[%emt 0:00:06]} 41. Kf2 {[%emt 0:15:23]} g5 {[%emt 0:15:05]} 42. f4 {[%emt 0:00:23]} g4 {[%emt 0:00:28]} 43. Bg5+ {[%emt 0:00:48]} Kg6 {[%emt 0:00:08]} 44. Ke3 {[%emt 0:03:02]} Bc5+ {[%emt 0:00:12]} 45. Kd3 {[%emt 0:00:07]} b5 {[%emt 0:00:25]} 46. Rc1 {[%emt 0:00:20]} Be4+ {[%emt 0:00:11]} 47. Ke2 {[%emt 0:00:56]} Bf8 {[%emt 0:00:54]} 48. Rc8 {[%emt 0:00:34]} Bd6 {[%emt 0:01:01]} 49. Rg8+ {[%emt 0:00:23]} Kf7 {[%emt 0:00:16]} 50. Rd8 {[%emt 0:00:07]} Ke6 {[%emt 0:00:45]} 51. Re8+ {[%emt 0:00:25]} Kd5 {[%emt 0:00:09]} 52. Rd8 {[%emt 0:00:12]} Kc5 {[%emt 0:00:58]} 53. Rc8+ {[%emt 0:00:21]} Kb4 {[%emt 0:00:17]} 54. Kd2 {[%emt 0:00:06]} a3 {[%emt 0:00:29]} 55. g3 {[%emt 0:00:09]} Bc5 {[%emt 0:00:52]} 56. Bf6 {[%emt 0:00:16]} Kc4 {[%emt 0:00:15]} 57. Be7 {[%emt 0:00:09]} a2 {[%emt 0:00:12]} 58. Rxc5+ {[%emt 0:00:09]} Kd4 {[%emt 0:00:13]} 59. Rc1 {[%emt 0:00:11]} b4 {[%emt 0:01:02]} 60. Bxb4 {[%emt 0:00:59]} Bd5 {[%emt 0:00:36]} 61. Bd6 {[%emt 0:02:11]} Ke4 {[%emt 0:00:15]} 62. Be5 {[%emt 0:00:42]} Kf3 {[%emt 0:00:12]} 63. Rf1+ {[%emt 0:00:15]} Kg2 64. Ke1 {[%emt 0:00:30]} Kxh2 {[%emt 0:00:16]} 65. Kf2 {[%emt 0:00:32]} h5 {[%emt 0:00:16]} 66. Rd1 {[%emt 0:00:34]} Bf3 {[%emt 0:00:24]} 67. Rd2 {[%emt 0:00:12]} Kh3 {[%emt 0:00:49]} 68. Rxa2 {[%emt 0:00:31]} h4 {[%emt 0:00:06]} 69. gxh4 {[%emt 0:00:15]} Kxh4 {[%emt 0:00:03]} 70. Bf6+ {[%emt 0:00:36]} Kh3 {[%emt 0:00:08]} 71. Bg5 {[%emt 0:00:23]} Be4 {[%emt 0:00:17]} 72. Ra3+ {[%emt 0:00:10]} Kh2 {[%emt 0:01:19]} 73. Bh4 {[%emt 0:01:12]} Bf3 {[%emt 0:00:36]} 74. Rxf3 {[%emt 0:00:27]} gxf3 {[%emt 0:00:03]} 75. Kxf3 {[%emt 0:00:22]} Kh3 {[%emt 0:00:12]} 76. Bg5 {[%emt 0:00:07]} Kh2 {[%emt 0:00:08]} 77. Ke3 {[%emt 0:00:08]} Kg3 {[%emt 0:00:12]} 78. Kd4 {[%emt 0:00:06]} Kh3 {[%emt 0:00:09]} 79. Ke5 {[%emt 0:00:02]} Kg4 {[%emt 0:00:06]} 80. Kf6 {[%emt 0:00:04]} Kh5 {[%emt 0:00:08]} 81. Kg7 {[%emt 0:00:30]} Kg4 {[%emt 0:00:17]} 82. Kg6 {[%emt 0:00:05]} Kg3 {[%emt 0:00:50]} 83. Kxf5 {[%emt 0:00:18]} Kf3 {[%emt 0:00:04]} 84. Ke5 {[%emt 0:00:05]} Kg4 {[%emt 0:00:06]} 85. Bd8 {[%emt 0:00:16]} Kh5 {[%emt 0:00:07]} 86. f5 {[%emt 0:00:08]} Kh6 {[%emt 0:00:11]} 87. f6 {[%emt 0:00:20]} Kh7 {[%emt 0:00:17]} 88. Ke6 {[%emt 0:00:13]} Kg8 {[%emt 0:00:05]} 89. f7+ {[%emt 0:00:04]} Kf8 90. Be7+ 1-0

[Event "GER-ch Youth-ODJM 2022 A"]
[Site "Willingen"]
[Date "2022.06.09"]
[Round "7.9"]
[White "Dornieden, Jonas"]
[Black "Savchenko, Daniel"]
[Result "1/2-1/2"]
[ECO "D31"]
[WhiteElo "2069"]
[BlackElo "2134"]
[Annotator "TA"]
[PlyCount "77"]
[EventDate "2022.06.05"]
[EventType "swiss"]
[EventRounds "9"]
[EventCountry "GER"]
[SourceTitle "playchess.com"]
[Source "ChessBase"]
[SourceQuality "1"]
[TimeControl "40/4500+30:900+30"]

{[%evp 13,77,14,33,35,41,59,46,54,82,35,35,24,25,0,0,0,0,0,0,-24,-31,-56,-24,-45,-50,-83,-74,-85,-39,-38,-7,-35,18,-80,0,0,0,0,0,0,0,0,0,0,7,11,0,0,22,0,40,52,148,146,220,0,0,0,21,22,27,45,147,146,115,101]} 1. d4 {[%emt 0:00:00]} d5 {[%emt 0:00:00]} 2. c4 {[%emt 0:00:00]} e6 {[%emt 0:00:00]} 3. Nc3 {[%emt 0:00:00]} Be7 {[%emt 0:00:00]} 4. cxd5 {[%emt 0:00:00]} exd5 {[%emt 0:00:00]} 5. Bf4 {[%emt 0:00:00]} c6 {[%emt 0:00:00]} 6. e3 {[%emt 0:00:00]} Bf5 {[%emt 0:00:00]} 7. g4 {[%emt 0:00:00]} Bg6 {[%emt 0:00:00]} 8. h4 {[%emt 0:00:00] [#] aiming for h5. D31: Queen's Gambit Declined: Semi-Slav without ...Nf6 (+ Marshall Gambit and Noteboom) and Exchange Variation lines without ...Nf6.} h5 {[%emt 0:00:00]} 9. g5 {[%emt 0:00:00]} Bd6 {[%emt 0:00:42]} 10. Nge2 {[%emt 0:00:00] White is slightly better.} Na6 {[%emt 0:03:36]} 11. a3 {[%emt 0:03:15] Inhibits Nb4.} ({White should try} 11. Ng3 $16) 11... Ne7 $14 {[%emt 0:06:33] [#]} 12. Rc1 $146 {[%emt 0:06:39]} ({Predecessor:} 12. Bxd6 Qxd6 13. Nf4 Nc7 14. Be2 Ne6 15. Nxg6 fxg6 16. Bd3 O-O 17. Ne2 Rae8 18. Ng1 Nxd4 19. exd4 {0-1 (36) Tsirulnik,A (1938)-Zingaylo,A Lvov 2007}) 12... Nc7 {[%emt 0:03:30]} 13. Bxd6 {[%emt 0:11:34]} Qxd6 {[%emt 0:00:53]} 14. Nf4 {[%emt 0:00:35]} Ne6 {[%emt 0:01:55]} 15. Nxg6 {[%emt 0:03:33]} fxg6 {[%emt 0:02:43]} 16. Bd3 {[%emt 0:06:19]} O-O {[%emt 0:03:17]} 17. Qd2 {[%emt 0:04:00]} Nf5 {[%emt 0:05:17]} 18. Ne2 {[%emt 0:03:45]} Rae8 {[%emt 0:05:31]} 19. Kd1 {[%emt 0:05:32]} c5 {[%emt 0:04:08][%cal Rc5d4] Prevents Qb4.} 20. Bxf5 {[%emt 0:09:43]} gxf5 {[%emt 0:07:08]} (20... Rxf5 $17 21. dxc5 Nxc5) 21. f4 $15 {[%emt 0:01:30]} Rc8 {[%emt 0:03:11]} 22. Rc3 {[%emt 0:06:56]} g6 {[%emt 0:06:07]} (22... Rc6 $15) 23. Kc1 {[%emt 0:07:09]} (23. dxc5 $11 {remains equal.} Nxc5 24. Qc2) 23... cxd4 {[%emt 0:01:56]} (23... c4 $17) 24. Nxd4 $11 {[%emt 0:00:25]} Nc5 {[%emt 0:01:46]} 25. Qc2 {[%emt 0:01:12]} Qd7 $1 {[%emt 0:01:03] Hoping for ...Ne4.} 26. Kb1 {[%emt 0:07:34]} ({Reject} 26. Rxc5 Rxc5 27. Qxc5 Rc8 28. Qxc8+ Qxc8+ 29. Kd2 Qd8 $15) 26... Ne4 {[%emt 0:00:14]} 27. Rxc8 {[%emt 0:00:21]} Rxc8 {[%emt 0:00:05]} 28. Qg2 {[%emt 0:00:32]} Qc7 {[%emt 0:05:04] Against Rc1} 29. Rd1 {[%emt 0:02:23]} Qa5 {[%emt 0:00:46]} 30. Qe2 {[%emt 0:01:43]} a6 {[%emt 0:02:28]} 31. Qe1 {[%emt 0:01:02]} Qb6 {[%emt 0:02:37] Threatens to win with ...Nc3+.} 32. Rc1 {[%emt 0:00:51] Prevents Nc3+.} Rc4 {[%emt 0:00:14] [#]} ({Better is} 32... Rc5 $14) 33. Nf3 $1 $16 {[%emt 0:01:21]} Nd6 {[%emt 0:06:53]} (33... Rc7 $16) 34. Qd2 $2 {[%emt 0:00:48]} ({Only move:} 34. Ne5 $18) 34... Rxc1+ $11 {[%emt 0:01:27]} 35. Kxc1 {[%emt 0:00:46]} Qc5+ {[%emt 0:00:14]} 36. Kb1 $1 {[%emt 0:01:01]} ({Much weaker is} 36. Qc3 Qxc3+ 37. bxc3 Nc4 $17) 36... Nc4 {[%emt 0:01:31][%csl LRd2,LRe3]} 37. Qd4 {[%emt 0:01:52]} Qxd4 {[%emt 0:06:33]} (37... Qd6 $14) 38. exd4 $16 {[%emt 0:00:07]} Ne3 {[%emt 0:00:30]} 39. Ne1 {[%emt 0:00:12] Prevents Ng2.  Weighted Error Value: White=0.22 (precise) /Black=0.22 (precise)} 1/2-1/2

[Event "GER-ch Youth-ODJM 2022 A"]
[Site "Willingen"]
[Date "2022.06.09"]
[Round "7.10"]
[White "Koll, Linus"]
[Black "Köhler, Lukas"]
[Result "1/2-1/2"]
[ECO "B10"]
[WhiteElo "1989"]
[BlackElo "2099"]
[Annotator "TA"]
[PlyCount "50"]
[EventDate "2022.06.05"]
[EventType "swiss"]
[EventRounds "9"]
[EventCountry "GER"]
[SourceTitle "playchess.com"]
[Source "ChessBase"]
[SourceQuality "1"]
[TimeControl "40/4500+30:900+30"]

{[%evp 9,50,16,5,3,-1,10,0,0,0,0,11,14,18,12,37,41,45,42,65,0,2,-4,-6,-4,-10,-11,8,8,8,-18,-14,-26,-20,-27,-11,-30,-8,-10,-11,-14,-5,-4,-6]} 1. e4 {[%emt 0:00:00]} c6 {[%emt 0:00:00]} 2. Nf3 {[%emt 0:00:00]} d5 {[%emt 0:00:00]} 3. exd5 {[%emt 0:00:00]} cxd5 {[%emt 0:00:00]} 4. Ne5 {[%emt 0:00:00]} a6 {[%emt 0:00:00]} 5. d4 {[%emt 0:00:00][%cal Bd2d4,Bd4e5][%mdl 32]} Nc6 {[%emt 0:00:00]} 6. c3 {[%emt 0:00:00] B10: Caro-Kann: 2 d3 and 2 c4.} Nxe5 {[%emt 0:00:00]} 7. dxe5 {[%emt 0:00:00]} Bf5 {[%emt 0:00:00] [#]} 8. Qa4+ $146 {[%emt 0:00:00]} ({Predecessor:} 8. Bd3 Bxd3 9. Qxd3 e6 10. O-O Qc7 11. Re1 Bc5 12. Nd2 Ne7 13. Nf3 Nf5 14. Bd2 {0-1 (64) Chigaev,M (2589)-Fedoseev,V (2678) Chess.com INT 2020}) 8... Qd7 {[%emt 0:00:00]} 9. Qxd7+ {[%emt 0:00:00]} Bxd7 {[%emt 0:00:00]} 10. Be3 {[%emt 0:00:00]} f6 {[%emt 0:04:38]} 11. exf6 {[%emt 0:11:18]} gxf6 {[%emt 0:03:47]} 12. c4 {[%emt 0:00:13]} dxc4 {[%emt 0:01:42]} 13. Bxc4 {[%emt 0:00:05]} Rc8 {[%emt 0:02:09]} 14. Be2 {[%emt 0:01:34] White is more active.} (14. Bb3 $14) 14... Bh6 $11 {[%emt 0:02:29]} 15. Nc3 {[%emt 0:05:29]} Bxe3 {[%emt 0:03:12]} 16. Bh5+ {[%emt 0:00:13]} Kf8 {[%emt 0:00:37] [#] Threatens to win with ...Bd4.} 17. fxe3 {[%emt 0:00:06]} e6 {[%emt 0:11:57]} 18. O-O {[%emt 0:10:37]} Ke7 {[%emt 0:02:35]} 19. Ne4 {[%emt 0:01:37]} Bc6 {[%emt 0:01:59]} 20. Ng3 {[%emt 0:06:56]} Nh6 {[%emt 0:02:27]} 21. Rf2 {[%emt 0:00:47]} Rhf8 {[%emt 0:03:26]} 22. Rd2 {[%emt 0:00:34]} Rcd8 {[%emt 0:00:43]} 23. Rad1 {[%emt 0:00:08] The position is equal.} Rxd2 {[%emt 0:00:42]} 24. Rxd2 {[%emt 0:00:04]} Rg8 {[%emt 0:06:15]} 25. Bf3 {[%emt 0:02:10]} Bxf3 {[%emt 0:08:02] Weighted Error Value: White=0.09 (flawless) /Black=0.05 (flawless)} 1/2-1/2